fUST/lending_fUST_20250702
["ID","MTS","AMOUNT","RATE_DAILY","PERIOD"]
[368939498,1751399441261,-460.0,0.00017904,2]
[368939500,1751399441270,-460.0,0.00017904,2]
[368939502,1751399441280,-460.0,0.00017904,2]
[368939504,1751399441290,-460.0,0.00017904,2]
[368939506,1751399441300,-460.0,0.00017904,2]
[368939508,1751399441309,-460.0,0.00017904,2]
[368939510,1751399441319,-460.0,0.00017904,2]
[368939512,1751399441328,-460.0,0.00017904,2]
[368939514,1751399441338,-460.0,0.00017904,2]
[368939516,1751399441347,-460.0,0.00017904,2]
[368939518,1751399441357,-462.19,0.00017905,2]
[368939520,1751399441366,-460.0,0.00017905,2]
[368939522,1751399441375,-460.0,0.00017905,2]
[368939524,1751399441384,-158.77,0.00017905,2]
[368939526,1751399441394,-460.0,0.00017905,2]
[368939528,1751399441403,-460.0,0.00017905,2]
[368939530,1751399441412,-460.0,0.00017906,2]
[368939532,1751399441422,-460.0,0.00017906,2]
[368939534,1751399441431,-500.0,0.00017927,2]
[368939536,1751399441441,-500.0,0.00017927,2]
[368939538,1751399441450,-481.68474319,0.00017973,2]
[368939540,1751399441459,-460.0,0.00018121,2]
[368939542,1751399441469,-460.0,0.00018121,2]
[368939544,1751399441478,-518.79,0.00018121,2]
[368939546,1751399441491,-460.0,0.00018121,2]
[368939548,1751399441500,-477.89,0.00018121,2]
[368939550,1751399441510,-564.93493009,0.00018121,2]
[368939552,1751399441519,-244.00539633,0.00018121,2]
[368939554,1751399441529,-460.0,0.00018121,2]
[368939556,1751399441538,-606.16,0.00018121,2]
[368939558,1751399441547,-557.41,0.00018121,2]
[368939559,1751399441557,-460.0,0.00018121,2]
[368939561,1751399441567,-460.0,0.00018121,2]
[368939563,1751399441578,-460.0,0.00018121,2]
[368939565,1751399441587,-460.0,0.00018121,2]
[368939567,1751399441597,-196.04967083,0.00018121,2]
[368939569,1751399441606,-460.0,0.00018121,2]
[368939571,1751399441615,-460.0,0.00018121,2]
[368939573,1751399441624,-460.0,0.00018121,2]
[368939575,1751399441633,-460.0,0.00018121,2]
[368939577,1751399441642,-460.0,0.00018121,2]
[368939579,1751399441652,-460.0,0.00018121,2]
[368939581,1751399441661,-460.0,0.00018121,2]
[368939583,1751399441670,-460.0,0.00018178,2]
[368939585,1751399441679,-460.0,0.00018178,2]
[368939587,1751399441689,-320.62476692,0.00018178,2]
[368939589,1751399441698,-460.0,0.00018178,2]
[368939591,1751399441707,-460.0,0.00018178,2]
[368939593,1751399441716,-460.0,0.00018178,2]
[368939595,1751399441726,-400.79334513,0.00018178,2]
[368939597,1751399441735,-521.75,0.00018178,2]
[368939599,1751399441744,-460.0,0.00018178,2]
[368939601,1751399441753,-460.0,0.00018178,2]
[368939603,1751399441762,-460.0,0.00018178,2]
[368939605,1751399441772,-460.0,0.00018178,2]
[368939607,1751399441782,-673.73,0.00018178,2]
[368939609,1751399441791,-460.0,0.00018178,2]
[368939611,1751399441800,-539.34,0.00018178,2]
[368939613,1751399441810,-460.0,0.00018178,2]
[368939615,1751399441819,-460.0,0.00018178,2]
[368939617,1751399441828,-460.0,0.00018178,2]
[368939619,1751399441837,-460.0,0.00018178,2]
[368939621,1751399441847,-521.91,0.00018178,2]
[368939623,1751399441856,-460.0,0.00018178,2]
[368939624,1751399441866,-460.0,0.00018178,2]
[368939626,1751399441875,-460.0,0.00018178,2]
[368939628,1751399441884,-460.0,0.00018179,2]
[368939630,1751399441893,-460.0,0.00018179,2]
[368939632,1751399441902,-460.0,0.00018395,2]
[368939634,1751399441911,-460.0,0.00018395,2]
[368939636,1751399441920,-460.0,0.00018395,2]
[368939638,1751399441930,-460.0,0.00018395,2]
[368939640,1751399441939,-460.0,0.00018395,2]
[368939642,1751399441948,-418.37,0.00018395,2]
[368939644,1751399441958,-460.0,0.00018395,2]
[368939646,1751399441967,-460.0,0.00018395,2]
[368939648,1751399441977,-460.0,0.00018395,2]
[368939650,1751399441987,-460.0,0.00018395,2]
[368939652,1751399441996,-460.0,0.00018395,2]
[368939654,1751399442005,-460.0,0.00018395,2]
[368939656,1751399442014,-492.48,0.00018452,2]
[368939658,1751399442024,-460.0,0.00018452,2]
[368939659,1751399442033,-460.0,0.00018452,2]
[368939661,1751399442042,-460.0,0.00018452,2]
[368939663,1751399442053,-460.0,0.00018452,2]
[368939665,1751399442062,-318.47,0.00018452,2]
[368939667,1751399442071,-234.72,0.00018452,2]
[368939669,1751399442080,-460.0,0.00018452,2]
[368939671,1751399442090,-673.73,0.00018452,2]
[368939673,1751399442099,-460.0,0.00018452,2]
[368939675,1751399442108,-460.0,0.00018452,2]
[368939677,1751399442118,-460.0,0.00018452,2]
[368939679,1751399442130,-460.0,0.00018452,2]
[368939681,1751399442140,-460.0,0.00018452,2]
[368939683,1751399442150,-460.0,0.00018452,2]
[368939685,1751399442159,-460.0,0.00018452,2]
[368939687,1751399442168,-460.0,0.00018452,2]
[368939689,1751399442177,-460.0,0.00018453,2]
[368939691,1751399442186,-460.0,0.00018453,2]
[368939693,1751399442195,-424.69562725,0.00018475,2]
[368939695,1751399442204,-1000.0,0.00018475,2]
[368939697,1751399442214,-518.4115854,0.000185,2]
[368939698,1751399442223,-518.41158513,0.000185,2]
[368939700,1751399442232,-518.41158513,0.000185,2]
[368939702,1751399442242,-460.0,0.00018669,2]
[368939704,1751399442251,-460.0,0.00018669,2]
[368939706,1751399442260,-460.0,0.00018669,2]
[368939708,1751399442269,-460.0,0.00018669,2]
[368939710,1751399442278,-460.0,0.00018669,2]
[368939712,1751399442287,-460.0,0.00018669,2]
[368939714,1751399442296,-460.0,0.00018669,2]
[368939716,1751399442307,-460.0,0.00018669,2]
[368939718,1751399442318,-460.0,0.00018669,2]
[368939720,1751399442328,-460.0,0.00018669,2]
[368939722,1751399442337,-460.0,0.00018669,2]
[368939724,1751399442347,-460.0,0.00018726,2]
[368939726,1751399442356,-460.0,0.00018726,2]
[368939728,1751399442366,-460.0,0.00018726,2]
[368939730,1751399442375,-161.49,0.00018726,2]
[368939732,1751399442384,-673.73,0.00018726,2]
[368939734,1751399442393,-584.78,0.00018726,2]
[368939736,1751399442402,-460.0,0.00018726,2]
[368939738,1751399442411,-460.0,0.00018726,2]
[368939740,1751399442421,-460.0,0.00018726,2]
[368939742,1751399442430,-367.66,0.00018726,2]
[368939753,1751399442535,-489.73,0.00018726,2]
[368939755,1751399442546,-173.59,0.00018726,2]
[368939757,1751399442556,-460.0,0.00018726,2]
[368939759,1751399442566,-460.0,0.00018727,2]
[368939762,1751399442576,-460.0,0.00018727,2]
[368939764,1751399442585,-518.41158513,0.00018728,2]
[368939766,1751399442595,-460.0,0.00018943,2]
[368939768,1751399442605,-460.0,0.00018943,2]
[368939770,1751399442614,-460.0,0.00018943,2]
[368939773,1751399442623,-460.0,0.00018943,2]
[368939776,1751399442633,-171.49,0.00018943,2]
[368939778,1751399442642,-460.0,0.00018943,2]
[368939780,1751399442651,-460.0,0.00018943,2]
[368939782,1751399442661,-557.32,0.00018943,2]
[368939784,1751399442672,-460.0,0.00018943,2]
[368939786,1751399442681,-460.0,0.00018943,2]
[368939789,1751399442691,-160.0,0.00018964,2]
[368939792,1751399442701,-837.20943635,0.00018964,2]
[368939794,1751399442710,-215.01728679,0.00018964,2]
[368939796,1751399442719,-160.0,0.00018964,2]
[368939798,1751399442729,-230.32585361,0.00018964,2]
[368939800,1751399442740,-230.14,0.00019,2]
[368939802,1751399442749,-460.0,0.00019,2]
[368939804,1751399442758,-460.0,0.00019,2]
[368939806,1751399442767,-673.73,0.00019,2]
[368939808,1751399442777,-460.0,0.00019,2]
[368939811,1751399442787,-569.4,0.00019,2]
[368939813,1751399442797,-460.0,0.00019,2]
[368939814,1751399442807,-460.0,0.00019,2]
[368939817,1751399442816,-585.27,0.00019001,2]
[368939818,1751399442826,-460.0,0.00019001,2]
[368939820,1751399442836,-518.41158513,0.00019003,2]
[368939822,1751399442845,-500.0,0.00019023,2]
[368939824,1751399442855,-460.0,0.00019217,2]
[368939826,1751399442864,-460.0,0.00019217,2]
[368939828,1751399442874,-460.0,0.00019217,2]
[368939830,1751399442883,-460.0,0.00019217,2]
[368939832,1751399442892,-460.0,0.00019217,2]
[368939834,1751399442902,-460.0,0.00019217,2]
[368939836,1751399442911,-460.0,0.00019217,2]
[368939838,1751399442921,-460.0,0.00019217,2]
[368939840,1751399442930,-460.0,0.00019274,2]
[368939842,1751399442938,-460.0,0.00019274,2]
[368939844,1751399442948,-673.73,0.00019274,2]
[368939846,1751399442957,-460.0,0.00019274,2]
[368939847,1751399442966,-477.08,0.00019274,2]
[368939850,1751399442976,-460.0,0.00019274,2]
[368939852,1751399442985,-460.0,0.00019275,2]
[368939853,1751399442996,-518.41158513,0.00019279,2]
[368939855,1751399443005,-460.0,0.00019491,2]
[368939857,1751399443015,-460.0,0.00019491,2]
[368939859,1751399443024,-460.0,0.00019491,2]
[368939861,1751399443033,-460.0,0.00019491,2]
[368939863,1751399443043,-460.0,0.00019491,2]
[368939865,1751399443052,-460.0,0.00019491,2]
[368939867,1751399443061,-460.0,0.00019491,2]
[368939869,1751399443070,-460.0,0.00019491,2]
[368939871,1751399443080,-460.0,0.00019548,2]
[368939873,1751399443089,-460.0,0.00019548,2]
[368939875,1751399443098,-673.73,0.00019548,2]
[368939876,1751399443107,-460.0,0.00019548,2]
[368939878,1751399443117,-460.0,0.00019548,2]
[368939880,1751399443127,-212.65,0.00019549,2]
[368939882,1751399443137,-518.41158513,0.00019555,2]
[368939884,1751399443146,-460.0,0.00019765,2]
[368939886,1751399443156,-460.0,0.00019765,2]
[368939888,1751399443166,-460.0,0.00019765,2]
[368939890,1751399443175,-460.0,0.00019765,2]
[368939892,1751399443184,-305.91,0.00019765,2]
[368939894,1751399443194,-460.0,0.00019765,2]
[368939896,1751399443203,-460.0,0.00019765,2]
[368939898,1751399443214,-314.55,0.00019765,2]
[368939900,1751399443225,-460.0,0.00019822,2]
[368939902,1751399443235,-166.23,0.00019822,2]
[368939904,1751399443245,-673.73,0.00019822,2]
[368939906,1751399443254,-460.0,0.00019822,2]
[368939908,1751399443265,-277.77,0.00019822,2]
[368939910,1751399443274,-518.41158513,0.00019831,2]
[368939912,1751399443283,-460.0,0.00020039,2]
[368939915,1751399443292,-460.0,0.00020039,2]
[368939918,1751399443301,-460.0,0.00020039,2]
[368939921,1751399443312,-267.28,0.00020039,2]
[368939924,1751399443322,-460.0,0.00020039,2]
[368939928,1751399443331,-460.0,0.00020039,2]
[368939930,1751399443340,-460.0,0.00020096,2]
[368939933,1751399443349,-673.73,0.00020096,2]
[368939935,1751399443359,-460.0,0.00020096,2]
[368939937,1751399443368,-518.41158513,0.00020107,2]
[368939939,1751399443377,-164.173834,0.00020187,2]
[368939941,1751399443386,-460.0,0.00020313,2]
[368939943,1751399443396,-460.0,0.00020313,2]
[368939945,1751399443405,-460.0,0.00020313,2]
[368939947,1751399443414,-414.44,0.00020313,2]
[368939949,1751399443423,-560.4042589,0.00020313,2]
[368939950,1751399443433,-408.6,0.0002037,2]
[368939951,1751399443442,-673.73,0.0002037,2]
[368939952,1751399443452,-460.0,0.0002037,2]
[368939953,1751399443461,-518.41158513,0.00020383,3]
[368939954,1751399443470,-707.24696546,0.00020559,2]
[368939955,1751399443479,-527.08,0.00020587,2]
[368939956,1751399443491,-460.0,0.00020587,2]
[368939957,1751399443501,-169.12,0.00020587,2]
[368939958,1751399443510,-941.69,0.000206,2]
[368939959,1751399443519,-204.498,0.00020628,2]
[368939960,1751399443530,-673.73,0.00020644,2]
[368939961,1751399443540,-460.0,0.00020644,2]
[368939962,1751399443549,-518.41158513,0.00020659,3]
[368939963,1751399443559,-460.0,0.00020861,2]
[368939964,1751399443569,-673.73,0.00020918,2]
[368939965,1751399443579,-460.0,0.00020918,2]
[368939966,1751399443588,-518.41158513,0.00020934,4]
[368939967,1751399443598,-460.0,0.00021135,2]
[368939968,1751399443607,-673.73,0.00021192,2]
[368939969,1751399443616,-460.0,0.00021192,2]
[368939970,1751399443626,-518.41158513,0.0002121,4]
[368939971,1751399443635,-207.4,0.00021353,2]
[368939972,1751399443644,-5000.0,0.00021353,2]
[368939973,1751399443653,-460.0,0.00021409,2]
[368939974,1751399443662,-673.73,0.00021466,2]
[368939975,1751399443673,-460.0,0.00021466,2]
[368939977,1751399443683,-518.41158513,0.00021486,5]
[368939979,1751399443692,-714.12,0.000216,2]
[368939981,1751399443701,-707.24696545,0.00021644,2]
[368939983,1751399443711,-460.0,0.00021683,2]
[368939985,1751399443720,-673.73,0.0002174,2]
[368939987,1751399443730,-460.0,0.0002174,2]
[368939989,1751399443740,-518.41158513,0.00021762,5]
[368939991,1751399443749,-460.0,0.00021957,2]
[368939993,1751399443761,-168.0,0.00022,2]
[368939995,1751399443770,-673.73,0.00022014,2]
[368939997,1751399443780,-460.0,0.00022014,2]
[368939999,1751399443789,-518.41158513,0.00022038,6]
[368940001,1751399443799,-9958.27,0.000221,7]
[368940003,1751399443808,-1346.69,0.000221,7]
[368940005,1751399443818,-168.0,0.00022125,2]
[368940006,1751399443831,-460.0,0.00022231,2]
[368940007,1751399443841,-673.73,0.00022288,2]
[368940008,1751399443850,-460.0,0.00022288,2]
[368940009,1751399443860,-518.41158513,0.00022314,7]
[368940010,1751399443870,-168.0,0.00022352,2]
[368940011,1751399443879,-300.0,0.0002236,2]
[368940012,1751399443889,-300.0,0.0002236,4]
[368940013,1751399443900,-320.0,0.0002236,6]
[368940014,1751399443909,-10000.0,0.00022361,2]
[368940015,1751399443918,-820.1506077,0.00022361,2]
[368940016,1751399443927,-168.0,0.000224,2]
[368940017,1751399443937,-460.0,0.00022505,2]
[368940018,1751399443947,-673.73,0.00022562,2]
[368940019,1751399443957,-460.0,0.00022562,2]
[368940020,1751399443967,-518.41158513,0.0002259,7]
[368940021,1751399443976,-168.0,0.00022714,2]
[368940022,1751399443985,-215.0738,0.00022722,2]
[368940023,1751399443995,-707.24696545,0.0002273,2]
[368940024,1751399444005,-168.0,0.00022766,2]
[368940025,1751399444015,-460.0,0.00022779,2]
[368940026,1751399444025,-673.73,0.00022836,2]
[368940028,1751399444035,-460.0,0.00022836,2]
[368940030,1751399444045,-168.0,0.00022851,2]
[368940032,1751399444055,-518.41158513,0.00022866,8]
[368940034,1751399444065,-941.69,0.000229,7]
[368940036,1751399444075,-168.0,0.00023014,7]
[368940038,1751399444084,-494.76,0.00023053,2]
[368940040,1751399444094,-673.73,0.0002311,2]
[368940042,1751399444104,-546.87,0.0002311,2]
[368940044,1751399444114,-518.41158513,0.00023141,8]
[368940046,1751399444123,-673.73,0.00023384,2]
[368940048,1751399444132,-518.41158513,0.00023417,9]
[368940050,1751399444142,-673.83,0.00023658,2]
[368940052,1751399444151,-966.0,0.00023667,2]
[368940054,1751399444161,-2151.0,0.00023667,2]
[368940056,1751399444171,-646.0,0.00023667,2]
[368940058,1751399444181,-518.41158513,0.00023693,9]
[368940060,1751399444190,-707.24696545,0.00023815,2]
[368940062,1751399444200,-175.72665235,0.00023918,2]
[368940064,1751399444209,-518.41158513,0.00023969,10]
[368940066,1751399444218,-900.0,0.00023973,2]
[368940068,1751399444228,-160.0,0.00024,7]
[368940070,1751399444237,-230.32585361,0.00024,7]
[368940072,1751399444246,-215.01728679,0.00024,7]
[368940074,1751399444256,-160.0,0.00024,7]
[368940076,1751399444266,-837.20943635,0.00024,7]
[368940078,1751399444275,-2674.25726464,0.00024057,2]
[368940080,1751399444284,-160.9478238,0.00024082,2]
[368940082,1751399444293,-575.5050994,0.00024082,2]
[368940084,1751399444303,-575.5050994,0.00024082,2]
[368940086,1751399444312,-575.5050994,0.00024082,2]
[368940088,1751399444321,-575.5050994,0.00024082,2]
[368940090,1751399444330,-575.5050994,0.00024082,2]
[368940092,1751399444340,-340.027545,0.00024082,2]
[368940094,1751399444349,-354.6593042,0.00024082,2]
[368940096,1751399444358,-223.0315306,0.00024091,2]
[368940098,1751399444367,-366.1147399,0.00024192,2]
[368940100,1751399444376,-175.72665235,0.00024219,2]
[368940102,1751399444386,-518.41158513,0.00024245,10]
[368940104,1751399444395,-9958.27,0.000243,7]
[368940106,1751399444404,-1346.69,0.000243,7]
[368940108,1751399444414,-1735.299829,0.000243,2]
[368940110,1751399444423,-179.22201206,0.00024317,2]
[368940112,1751399444432,-716.17116018,0.00024317,2]
[368940113,1751399444443,-525.21313315,0.00024317,2]
[368940116,1751399444453,-153.0,0.00024329,2]
[368940117,1751399444463,-159.3450821,0.00024329,2]
[368940119,1751399444472,-177.5384831,0.00024329,2]
[368940121,1751399444483,-306.3724206,0.00024329,2]
[368940124,1751399444497,-153.0,0.00024329,2]
[368940126,1751399444506,-575.5050994,0.00024329,2]
[368940128,1751399444515,-159.3450821,0.00024329,2]
[368940130,1751399444527,-575.5050994,0.00024329,2]
[368940132,1751399444536,-153.0,0.00024329,2]
[368940134,1751399444545,-159.3450821,0.00024329,2]
[368940136,1751399444554,-575.5050994,0.00024329,2]
[368940137,1751399444564,-355.0769662,0.00024329,2]
[368940139,1751399444574,-306.0,0.00024329,2]
[368940142,1751399444584,-159.3450821,0.00024329,2]
[368940144,1751399444596,-575.5050994,0.00024329,2]
[368940146,1751399444605,-153.0,0.00024329,2]
[368940148,1751399444615,-159.3450821,0.00024329,2]
[368940150,1751399444625,-575.5050994,0.00024329,2]
[368940152,1751399444634,-306.0,0.00024356,2]
[368940154,1751399444643,-2674.25726465,0.0002436,2]
[368940156,1751399444654,-1169.139138,0.00024394,4]
[368940158,1751399444665,-151.0,0.00024415,7]
[368940160,1751399444675,-518.41158513,0.00024521,11]
[368940162,1751399444684,-800.0,0.00024568,2]
[368940163,1751399444694,-151.0,0.00024582,2]
[368940166,1751399444704,-800.0,0.00024628,2]
[368940167,1751399444713,-200.0,0.0002463,11]
[368940169,1751399444722,-268.011481,0.00024639,2]
[368940171,1751399444732,-11891.66800514,0.0002465,2]
[368940174,1751399444741,-428.65665217,0.0002465,2]
[368940185,1751399444831,-17094.79129934,0.00024651,2]
[368940187,1751399444850,-310.0,0.00024657,2]
[368940189,1751399444860,-2493.36,0.0002469,10]
[368940191,1751399444869,-30878.85182376,0.000247,2]
[368940193,1751399444879,-800.0,0.00024703,2]
[368940195,1751399444888,-387.0,0.00024704,2]
[368940197,1751399444897,-193.96505387,0.00024796,2]
[368940199,1751399444907,-518.41158513,0.00024797,11]
[368940201,1751399444917,-941.69,0.000248,7]
[368940203,1751399444927,-169.04463359,0.000248,2]
[368940205,1751399444936,-1000.0,0.000248,2]
[368940207,1751399444946,-188.591227,0.000248,2]
[368940208,1751399444955,-96308.7058739,0.000248,2]
[368940209,1751399444965,-800.0,0.00024811,2]
[368940210,1751399444974,-151.0,0.00024816,7]
[368940211,1751399444983,-800.0,0.00024825,2]
[368940212,1751399444993,-12038.5882342,0.0002489,2]
[368940213,1751399445003,-132404.90443982,0.00024899,7]
[368940214,1751399445081,-667.27857388,0.00024899,7]
[368940215,1751399445093,-1385.2,0.00024899,7]
[368940216,1751399445104,-803.742298,0.00024899,7]
[368940217,1751399445116,-944.70598263,0.00024899,7]
[368940218,1751399445158,-460.0,0.00017299,2]
[368940219,1751399445168,-2098.75168008,0.00024317,2]
[368940220,1751399445178,-200.0,0.00024658,15]
[368940221,1751399445189,-972.11571266,0.0002469,10]
[368940222,1751399445201,-1105.68428734,0.0002469,10]
[368940223,1751399445211,-58205.194075,0.00024899,7]
[368940224,1751399445255,-460.0,0.00017299,2]
[368940225,1751399445265,-58165.05865255,0.00024899,7]
[368940226,1751399445277,-28910.99122973,0.00024899,7]
[368940235,1751399668413,-190.47070433,0.00017199,2]
[368940236,1751399677386,-229.77131047,0.00017199,2]
[368940237,1751399680084,-68.38074834,0.00017199,2]
[368940238,1751399843322,164.173834,0.00013699,2]
[368940240,1751399859319,-170.66417123,0.00017198,2]
[368940241,1751399864297,-194.38763022,0.00017198,2]
[368940242,1751399869412,-62.49311628,0.00017198,2]
[368940247,1751400044008,-165.30214541,0.00017199,2]
[368940248,1751400045510,-208.79965763,0.00017199,2]
[368940249,1751400245132,-160.0,0.00017196,2]
[368940250,1751400345109,-167.33907766,0.00017196,2]
[368940251,1751400345131,-672.54888193,0.00017285,2]
[368940252,1751400345152,-151.0,0.00017289,2]
[368940253,1751400345174,-300.0,0.00017293,2]
[368940254,1751400345195,-193.06263497,0.00017293,2]
[368940255,1751400347165,-106.93736503,0.00017293,2]
[368940256,1751400347186,-300.0,0.00017293,2]
[368940257,1751400347208,-614.80516094,0.00017293,2]
[368940258,1751400388810,5433.5495988,0.00016296,2]
[368940259,1751400388833,19466.4504012,0.00016296,2]
[368940260,1751400433093,-585.19483906,0.00017293,2]
[368940261,1751400433115,-491.0,0.00017293,2]
[368940262,1751400433137,-300.0,0.00017293,2]
[368940263,1751400433158,-206.63706115,0.00017294,2]
[368940264,1751400451086,-2139.27658079,0.00017294,2]
[368940266,1751400557421,533.5495988,0.00016295,2]
[368940267,1751400557444,9466.4504012,0.00016295,2]
[368940288,1751400632322,-284.91981695,0.00017273,2]
[368940290,1751400632333,-300.0,0.00017292,2]
[368940291,1751400632343,-300.0,0.00017292,2]
[368940292,1751400632354,-160.0,0.00017292,2]
[368940293,1751400632364,-4476.46390408,0.00017293,2]
[368940294,1751400632376,-3206.91590827,0.00017293,2]
[368940295,1751400632427,-876.47010365,0.00017293,2]
[368940296,1751400632440,-555.00371477,0.00017293,2]
[368940297,1751400632453,-2320.22415375,0.00017293,2]
[368940298,1751400632465,-359.99999999,0.00017293,2]
[368940299,1751400632476,-809.77192445,0.00017293,2]
[368940316,1751400638220,-500.0,0.00017292,2]
[368940318,1751400638231,-500.0,0.00017292,2]
[368940320,1751400638243,-500.0,0.00017292,2]
[368940322,1751400638253,-129.0348442,0.00017292,2]
[368940324,1751400638266,-370.9651558,0.00017292,2]
[368940327,1751400638276,-500.0,0.00017292,2]
[368940329,1751400638287,-500.0,0.00017292,2]
[368940331,1751400638298,-377.43037045,0.00017292,2]
[368940333,1751400638309,-165.1978198,0.00017292,2]
[368940336,1751400638322,-334.8021802,0.00017292,2]
[368940338,1751400638333,-500.0,0.00017292,2]
[368940340,1751400638344,-500.0,0.00017292,2]
[368940342,1751400638355,-429.49023719,0.00017292,2]
[368940344,1751400638368,-70.50976281,0.00017292,2]
[368940346,1751400638379,-500.0,0.00017292,2]
[368940348,1751400638391,-500.0,0.00017292,2]
[368940351,1751400638401,-500.0,0.00017292,2]
[368940353,1751400638414,-576.07324025,0.00017292,2]
[368940356,1751400638424,-400.53723601,0.00017292,2]
[368940358,1751400638435,-4618.06490202,0.00017293,2]
[368940360,1751400638447,-460.0,0.00017293,2]
[368940362,1751400638462,-460.0,0.00017293,2]
[368940364,1751400638475,-500.0,0.00017293,2]
[368940366,1751400638486,-460.0,0.00017293,2]
[368940369,1751400638497,-23.71661419,0.00017293,2]
[368940371,1751400638511,-436.28338581,0.00017293,2]
[368940373,1751400638521,-460.0,0.00017293,2]
[368940375,1751400638531,-460.0,0.00017293,2]
[368940378,1751400638542,-460.0,0.00017293,2]
[368940380,1751400638553,-460.0,0.00017293,2]
[368940382,1751400638563,-460.0,0.00017293,2]
[368940384,1751400638573,-460.0,0.00017293,2]
[368940386,1751400638583,-460.0,0.00017293,2]
[368940388,1751400638594,-460.0,0.00017293,2]
[368940390,1751400638605,-460.0,0.00017293,2]
[368940393,1751400638616,-562.05471006,0.00017294,2]
[368940395,1751400638627,-249.69076425,0.00017294,2]
[368940397,1751400638638,-177.28556717,0.00017294,2]
[368940399,1751400638648,-460.0,0.00017294,2]
[368940401,1751400638658,-460.0,0.00017294,2]
[368940402,1751400638669,-460.0,0.00017294,2]
[368940403,1751400638680,-460.0,0.00017294,2]
[368940404,1751400638690,-460.30019146,0.00017294,2]
[368940405,1751400638701,-460.0,0.00017294,2]
[368940406,1751400638712,-460.0,0.00017294,2]
[368940407,1751400638723,-460.0,0.00017294,2]
[368940408,1751400638734,-460.0,0.00017294,2]
[368940409,1751400638744,-460.0,0.00017294,2]
[368940410,1751400638756,-380.97274341,0.00017294,2]
[368940411,1751400638768,-460.0,0.00017294,2]
[368940412,1751400638779,-460.0,0.00017294,2]
[368940413,1751400638790,-547.35168835,0.00017294,2]
[368940414,1751400638801,-460.0,0.00017294,2]
[368940415,1751400638813,-460.0,0.00017294,2]
[368940416,1751400638826,-460.0,0.00017294,2]
[368940417,1751400638837,-460.0,0.00017294,2]
[368940418,1751400638847,-312.7914433,0.00017294,2]
[368940419,1751400638860,-460.0,0.00017294,2]
[368940420,1751400638871,-250.39561635,0.00017294,2]
[368940421,1751400639039,-460.0,0.00017294,2]
[368940422,1751400639052,-460.0,0.00017294,2]
[368940423,1751400639062,-578.06886671,0.00017294,2]
[368940424,1751400639072,-460.0,0.00017294,2]
[368940425,1751400639081,-460.0,0.00017294,2]
[368940426,1751400639091,-460.0,0.00017294,2]
[368940427,1751400639101,-460.0,0.00017294,2]
[368940428,1751400639110,-460.0,0.00017294,2]
[368940429,1751400639119,-298.90107213,0.00017294,2]
[368940430,1751400639128,-460.0,0.00017294,2]
[368940431,1751400639138,-1000.0,0.00017294,2]
[368940432,1751400639148,-460.0,0.00017294,2]
[368940433,1751400639160,-460.0,0.00017294,2]
[368940434,1751400639170,-460.0,0.00017294,2]
[368940435,1751400639179,-500.0,0.00017294,2]
[368940436,1751400639189,-181.81860816,0.00017294,2]
[368940437,1751400639199,-460.0,0.00017294,2]